bitfinex/quotes_BTCUSD_20251219
["timestamp","ask_amount","ask_price","bid_price","bid_amount"]
[1766154636459,0.22689826,88146.0,88116.0,0.22947158]
[1766154636460,0.0025,88137.0,88131.0,0.01134674]
[1766154636666,0.0025,88145.0,88128.0,0.01134713]
[1766154636866,0.0025,88145.0,88125.0,0.48635]
[1766154636867,0.0025,88145.0,88133.0,0.01134648]
[1766154637069,0.0025,88145.0,88131.0,0.00036401]
[1766154637070,0.001099,88133.0,88131.0,0.00036401]
[1766154637277,0.00572,88146.0,88131.0,0.00036401]
[1766154637425,0.00572,88146.0,88131.0,0.01171075]
[1766154637626,0.00572,88146.0,88131.0,0.06844427]
[1766154637972,0.00572,88146.0,88138.0,0.01134584]
[1766154638175,0.00572,88146.0,88136.0,0.06807601]
[1766154638591,0.00572,88146.0,88138.0,0.01134584]
[1766154638804,0.00572,88146.0,88134.0,0.01134635]
[1766154639013,0.00572,88146.0,88132.0,0.06807955]
[1766154639221,0.00572,88146.0,88131.0,0.00036401]
[1766154639222,0.0025,88142.0,88131.0,0.00036401]
[1766154640170,0.07057202,88142.0,88131.0,0.00036401]
[1766154640446,0.0025,88142.0,88131.0,0.00036401]
[1766154641324,0.01384532,88142.0,88131.0,0.00036401]
[1766154641481,0.34050558,88140.0,88131.0,0.00036401]
[1766154641681,0.01384532,88142.0,88131.0,4.01e-06]
[1766154641682,0.01134623,88135.0,88131.0,4.01e-06]
[1766154641911,0.01134635,88134.0,88131.0,4.01e-06]
[1766154642178,0.82277622,88136.0,88131.0,4.01e-06]
[1766154642300,0.80915,88136.0,88131.0,4.01e-06]
[1766154642521,0.34050623,88135.0,88131.0,4.01e-06]
[1766154642725,0.01134635,88134.0,88131.0,4.01e-06]
[1766154642970,0.80915,88132.0,88116.0,0.0025]
[1766154643168,0.32916,88124.0,88116.0,0.0025]
[1766154643369,0.34050764,88124.0,88106.0,0.04544]
[1766154643547,0.00572,88126.0,88095.0,0.01135138]
[1766154643548,0.47999,88115.0,88095.0,0.01135138]
[1766154643763,0.47999,88115.0,88094.0,0.05675744]
[1766154643764,0.32916,88109.0,88096.0,0.00572]
[1766154643981,0.80915,88109.0,88097.0,0.0025]
[1766154644188,0.80915,88109.0,88089.0,0.01892912]
[1766154644189,0.34050983,88107.0,88089.0,0.01135215]
[1766154644413,0.4970597,88108.0,88095.0,0.0567564]
[1766154644414,0.00572,88108.0,88095.0,0.0567564]
[1766154644653,0.01135035,88103.0,88091.0,0.0025]
[1766154644822,0.01134996,88106.0,88091.0,0.0025]
[1766154645031,0.34050983,88107.0,88091.0,0.0025]
[1766154645168,0.32916,88105.0,88092.0,0.01135176]
[1766154645367,0.00572,88108.0,88091.0,0.05675937]
[1766154645368,0.47999,88104.0,88091.0,0.0025]
[1766154645891,0.47999,88104.0,88086.0,0.01135254]
[1766154645892,0.47999,88104.0,88082.0,0.0002]
[1766154645893,0.47999,88097.0,88082.0,0.0002]
[1766154646094,0.01362622,88105.0,88082.0,0.0002]
[1766154646095,0.01135241,88087.0,88082.0,5.373e-05]
[1766154646275,0.22703655,88092.0,88068.0,0.01135486]
[1766154646276,0.32916,88089.0,88071.0,0.00572]
[1766154646477,0.32916,88089.0,88072.0,0.0025]
[1766154646478,0.34051215,88089.0,88072.0,0.0025]
[1766154646674,0.34051215,88089.0,88071.0,0.01707447]
[1766154647086,0.34051215,88089.0,88072.0,0.0025]
[1766154647290,0.34051215,88089.0,88071.0,0.01707447]
[1766154647291,0.02497863,88087.0,88071.0,0.00572]
[1766154647517,0.80915,88086.0,88071.0,0.00572]
[1766154647728,0.05675984,88091.0,88071.0,0.00572]
[1766154647729,0.00572,88085.0,88072.0,0.0025]
[1766154647901,0.00572,88085.0,88071.0,0.00572]
[1766154647902,0.00572,88085.0,88075.0,0.01135395]
[1766154648104,0.82050151,88094.0,88077.0,0.0025]
[1766154648309,1.46123647,88120.0,88077.0,0.0025]
[1766154648310,1.46123647,88120.0,88090.0,0.0025]
[1766154648311,0.22697853,88115.0,88090.0,0.0025]
[1766154648513,0.22697853,88115.0,88090.0,0.00010901]
[1766154648514,0.0113506,88101.0,88090.0,0.00010901]
[1766154648719,0.0113506,88101.0,88082.0,0.01707305]
[1766154648720,0.32916,88097.0,88083.0,0.0025]
[1766154648923,0.47999,88096.0,88083.0,0.0025]
[1766154649123,0.47999,88096.0,88076.0,0.06812252]
[1766154649125,0.34062028,88097.0,88057.0,0.01135628]
[1766154649127,0.01135344,88079.0,88057.0,0.01135628]
[1766154649347,0.81066656,88078.0,88062.0,0.01135563]
[1766154649550,0.80915,88078.0,88061.0,0.0025]
[1766154649750,0.00151656,88077.0,88063.0,0.0025]
[1766154649957,0.00151656,88077.0,88073.0,0.00024844]
[1766154650157,0.05676979,88075.0,88073.0,4.4e-07]
[1766154650354,0.00151656,88074.0,88073.0,4.4e-07]
[1766154650593,0.00151656,88074.0,88050.0,0.45296]
[1766154650594,0.00635602,88059.0,88050.0,0.45296]
[1766154650753,0.00635602,88059.0,88036.0,0.05679444]
[1766154650754,0.01135628,88057.0,88037.0,0.01135886]
[1766154650953,0.0002,88052.0,88043.0,0.00572]
[1766154651387,0.0002,88052.0,88031.0,0.01155963]
[1766154651388,0.0002,88052.0,88033.0,0.00572]
[1766154651389,0.000651,88043.0,88033.0,0.00572]
[1766154651620,0.00151656,88048.0,88033.0,0.00572]
[1766154651820,0.00151656,88048.0,88034.0,0.0025]
[1766154652038,0.00151656,88048.0,88033.0,0.00582918]
[1766154652039,0.01135795,88044.0,88033.0,0.00582918]
[1766154652173,0.01135795,88044.0,88024.0,0.01136053]
[1766154652174,0.47999,88042.0,88023.0,0.01156066]
[1766154652377,0.00151656,88041.0,88025.0,0.0025]
[1766154652590,0.00151656,88041.0,88023.0,0.01156066]
[1766154652591,0.01135937,88033.0,88023.0,0.0002]
[1766154652863,0.01135924,88034.0,88023.0,0.0002]
[1766154652991,0.32916,88039.0,88023.0,0.0002]
[1766154652992,0.01135886,88037.0,88023.0,0.0002]
[1766154653193,0.4913495,88032.0,88023.0,0.0002]
[1766154653405,0.0706506,88041.0,88023.0,0.0002]
[1766154653629,0.0113586,88039.0,88032.0,0.001099]
[1766154653830,0.0113586,88039.0,88023.0,0.0002]
[1766154653831,0.00151656,88038.0,88023.0,0.0002]
[1766154654059,0.0113586,88039.0,88023.0,0.0002]
[1766154654263,0.54824863,88042.0,88029.0,0.45347]
[1766154654264,0.05690065,88042.0,88029.0,0.45347]
[1766154654433,0.05690065,88042.0,88028.0,0.3321]
[1766154654434,0.01135769,88046.0,88042.0,0.001099]
[1766154654641,0.00572,88047.0,88042.0,0.001099]
[1766154654856,0.00494,88051.0,88042.0,0.001099]
[1766154655064,0.05678899,88046.0,88034.0,0.45336]
[1766154655270,0.05679057,88043.0,88034.0,0.45336]
[1766154655591,0.01135834,88041.0,88024.0,0.79682053]
[1766154655747,0.01135834,88041.0,88031.0,0.00260905]
[1766154655952,0.01135886,88037.0,88031.0,0.00260905]
[1766154656150,0.01135886,88037.0,88023.0,0.0002]
[1766154656151,0.01136002,88028.0,88023.0,0.0002]
[1766154656375,0.00010916,88028.0,88023.0,0.0002]
[1766154656697,0.00010916,88028.0,88012.0,0.00247327]
[1766154656698,0.00626066,88023.0,88017.0,0.00572]
[1766154656851,0.00626066,88023.0,88014.0,0.00572]
[1766154657070,0.06816477,88022.0,88014.0,0.00572]
[1766154657277,0.00626066,88023.0,88014.0,0.00572]
[1766154657278,0.06306425,88023.0,88014.0,0.00572]
[1766154657594,0.00151656,88025.0,88021.0,1.74e-06]
[1766154657595,0.00151656,88022.0,88021.0,1.74e-06]
[1766154657759,0.00151656,88023.0,88021.0,1.74e-06]
[1766154657957,0.01136131,88018.0,88014.0,0.00572]
[1766154658182,0.00151656,88021.0,88014.0,0.00572]
[1766154658394,0.0025,88040.0,88018.0,0.001099]
[1766154658395,0.01287683,88026.0,88018.0,0.001099]
[1766154658603,0.00151656,88026.0,88014.0,0.00572]
[1766154658855,0.01135873,88038.0,88016.0,0.01386157]
[1766154659243,0.00635924,88034.0,88017.0,0.0025]
[1766154659450,0.0025,88036.0,88018.0,0.01136131]
[1766154659603,0.01707886,88037.0,88018.0,0.01136131]
[1766154659604,0.00572,88037.0,88020.0,0.0025]
[1766154659944,0.00572,88037.0,88022.0,0.01136079]
[1766154660099,0.00572,88037.0,88020.0,0.07066588]
[1766154660309,0.04548,88049.0,88037.0,0.001099]
[1766154660512,0.01362622,88076.0,88042.0,0.01135821]
[1766154660513,0.04548,88062.0,88042.0,0.01135821]
[1766154660724,0.05548475,88069.0,88049.0,0.39138656]
[1766154660725,1e-08,88050.0,88049.0,0.39138656]
[1766154660964,0.80915,88079.0,88049.0,0.39138656]
[1766154660965,0.80915,88089.0,88075.0,0.05676975]
[1766154661102,0.01135176,88092.0,88073.0,0.01135421]
[1766154661309,0.05675819,88093.0,88074.0,0.01162369]
[1766154661310,0.01362622,88091.0,88074.0,0.01162369]
[1766154661509,0.32916,88093.0,88075.0,0.001405]
[1766154661510,0.0025,88090.0,88075.0,0.001405]
[1766154661773,0.05675499,88098.0,88075.0,0.001405]
[1766154661774,0.47999,88107.0,88090.0,0.001099]
[1766154661969,0.00010932,88105.0,88090.0,1.01541684]
[1766154662171,0.00010932,88105.0,88090.0,0.006819]
[1766154662172,0.01135035,88103.0,88090.0,0.006819]
[1766154662371,0.01135035,88103.0,88090.0,0.00572]
[1766154662607,0.00010932,88105.0,88091.0,0.01135189]
[1766154662815,0.00010932,88105.0,88096.0,0.05675585]
[1766154663024,0.00010932,88105.0,88085.0,0.02639563]
[1766154663025,0.80915,88104.0,88088.0,0.00826]
[1766154663223,0.80915,88104.0,88082.0,0.01]
[1766154663224,0.05675819,88093.0,88070.0,1.01995244]
[1766154663429,1.03615545,88104.0,88079.0,0.0025]
[1766154663430,0.01135086,88099.0,88079.0,0.0025]
[1766154663625,0.01135163,88093.0,88079.0,0.0025]
[1766154664065,0.05675749,88095.0,88079.0,0.0025]
[1766154664066,0.01135138,88095.0,88079.0,0.0025]
[1766154664351,0.01135073,88100.0,88079.0,0.0025]
[1766154664352,0.00576,88101.0,88084.0,0.01135279]
[1766154664557,0.00576,88101.0,88079.0,0.0025]
[1766154664558,0.00010932,88105.0,88085.0,0.00966484]
[1766154664763,0.04078203,88161.0,88101.0,0.001099]
[1766154664764,0.01134893,88114.0,88101.0,0.001099]
[1766154664935,0.461,88118.0,88097.0,0.0025]
[1766154664936,0.00557864,88113.0,88097.0,0.0025]
[1766154665152,0.01134906,88113.0,88097.0,0.01650021]
[1766154665355,0.461,88118.0,88104.0,0.01135022]
[1766154665530,0.461,88118.0,88097.0,0.01650021]
[1766154665531,0.01134687,88130.0,88114.0,0.01134893]
[1766154665532,0.461,88130.0,88114.0,0.01134893]
[1766154665715,0.04548,88137.0,88114.0,0.01134893]
[1766154665716,0.04548,88137.0,88118.0,0.001099]
[1766154665914,0.0025,88135.0,88118.0,0.001099]
[1766154666157,0.0117461,88136.0,88118.0,0.02637083]
[1766154666401,0.0117461,88136.0,88115.0,0.00576]
[1766154666402,0.0004,88136.0,88122.0,0.35068]
[1766154666590,0.00576,88152.0,88132.0,0.01134661]
[1766154666761,0.00576,88152.0,88134.0,0.01134635]
[1766154666963,0.00576,88152.0,88139.0,0.01134571]
[1766154667167,0.01134314,88159.0,88139.0,0.01134571]
[1766154667168,0.01134301,88160.0,88152.0,0.001099]
[1766154667375,0.22684097,88168.0,88152.0,0.001099]
[1766154667376,0.01362622,88165.0,88152.0,0.001099]
[1766154667572,0.00576,88171.0,88152.0,0.001099]
[1766154667573,0.00576,88171.0,88155.0,0.05671828]
[1766154667785,0.0061242,88171.0,88159.0,0.01134314]
[1766154667988,0.0061242,88171.0,88162.0,0.0025]
[1766154667989,0.0003642,88171.0,88162.0,0.0025]
[1766154668189,0.04548,88182.0,88162.0,0.0025]
[1766154668190,0.05669769,88188.0,88167.0,0.01134211]
[1766154668390,0.01144864,88188.0,88167.0,0.07059012]
[1766154668569,0.01133992,88184.0,88177.0,0.0025]
[1766154668816,0.01134018,88182.0,88166.0,0.0025]
[1766154668967,0.00010923,88188.0,88168.0,0.0025]
[1766154669173,0.01134005,88183.0,88168.0,0.0025]
[1766154669374,0.00175463,88188.0,88169.0,0.0025]
[1766154669375,0.0016454,88182.0,88169.0,0.0025]
[1766154669611,0.00010923,88188.0,88170.0,0.01384172]
[1766154669826,0.00010923,88188.0,88171.0,0.01336802]
[1766154669990,0.00010923,88188.0,88171.0,0.02470961]
[1766154670208,0.00010923,88188.0,88173.0,0.01134134]
[1766154670423,0.00010923,88188.0,88171.0,0.02470961]
[1766154670424,0.00010923,88188.0,88174.0,0.01912842]
[1766154670774,0.01144864,88188.0,88174.0,0.00576]
[1766154670992,0.01144864,88188.0,88155.0,0.01134365]
[1766154670993,0.01134069,88178.0,88155.0,0.01134365]
[1766154671180,0.22680345,88183.0,88156.0,0.00576]
[1766154671181,0.01134211,88167.0,88156.0,0.00576]
[1766154671334,0.01134211,88167.0,88157.0,0.00576]
[1766154671535,0.01134185,88169.0,88157.0,0.00576]
[1766154671734,0.02432885,88176.0,88156.0,0.00576]
[1766154671735,0.01134211,88167.0,88156.0,0.00576]
[1766154671915,0.461,88172.0,88147.0,0.00203983]
[1766154671916,0.05671573,88159.0,88147.0,0.00203983]
[1766154672119,0.05671573,88159.0,88143.0,0.00204014]
[1766154672120,0.01134314,88159.0,88143.0,0.00204014]
[1766154672322,0.0025,88168.0,88143.0,0.00204014]
[1766154672518,0.0025,88168.0,88136.0,0.02721783]
[1766154672519,0.01134327,88158.0,88144.0,0.00576]
[1766154672717,0.461,88169.0,88151.0,0.01134417]
[1766154672718,0.02432885,88166.0,88151.0,0.01134417]
[1766154672952,0.0025,88175.0,88166.0,0.001099]
[1766154673126,0.00010921,88175.0,88166.0,0.01244124]
[1766154673324,0.00576,88184.0,88173.0,0.01134134]
[1766154673522,0.00576,88184.0,88169.0,0.01134185]
[1766154673747,0.11347504,88190.0,88169.0,0.01134185]
[1766154673748,0.04544,88190.0,88180.0,0.05670218]
[1766154674001,0.05576,88195.0,88183.0,0.01134005]
[1766154674192,0.0025,88194.0,88176.0,0.00576]
[1766154674453,0.01133863,88194.0,88177.0,0.00113547]
[1766154674650,0.01133902,88191.0,88177.0,0.00113547]
[1766154674897,0.01133902,88191.0,88176.0,0.00576]
[1766154674898,0.01133966,88186.0,88176.0,0.00576]
[1766154675212,0.461,88184.0,88169.0,0.00010921]
[1766154675393,0.461,88184.0,88150.0,1.00859784]
[1766154675394,0.01134211,88167.0,88154.0,0.00203931]
[1766154675551,0.01134211,88167.0,88155.0,0.00576]
[1766154675552,0.01134224,88166.0,88155.0,0.00576]
[1766154675993,0.01134224,88166.0,88151.0,0.00453939]
[1766154675994,0.02432885,88166.0,88156.0,0.00576]
[1766154676194,0.0244379,88167.0,88157.0,0.00576]
[1766154676657,0.0244379,88167.0,88151.0,0.07010392]
[1766154676658,0.05671344,88163.0,88151.0,0.00203939]
[1766154677041,0.01134288,88161.0,88151.0,0.00576]
[1766154677167,0.33333,88165.0,88136.0,0.013613]
[1766154677168,0.01134558,88140.0,88136.0,0.013613]
[1766154677377,0.01134558,88140.0,88130.0,0.02184]
[1766154677378,0.02432885,88160.0,88137.0,0.00576]
[1766154677379,0.01134391,88153.0,88137.0,0.00576]
[1766154677578,0.01134352,88156.0,88137.0,0.00576]
[1766154677579,0.01377374,88152.0,88140.0,0.001099]
[1766154677806,0.01134314,88159.0,88140.0,0.001099]
[1766154677807,0.0025,88158.0,88140.0,0.001099]
[1766154678067,0.00576,88160.0,88137.0,0.00576]
[1766154678068,0.01134481,88146.0,88137.0,0.00576]
[1766154678220,0.0025,88156.0,88137.0,0.00576]
[1766154678221,0.02432885,88145.0,88137.0,0.00576]
[1766154678428,0.0025,88162.0,88144.0,0.05672503]
[1766154678622,0.0025,88162.0,88143.0,0.34869]
[1766154678623,0.0025,88158.0,88145.0,0.00576]
[1766154678835,0.02325324,88158.0,88145.0,0.00576]
[1766154678989,0.0025,88156.0,88145.0,0.00576]
[1766154679193,0.01134365,88155.0,88137.0,0.0003642]
[1766154679409,0.51506828,88154.0,88137.0,0.0003642]
[1766154679616,0.01134455,88148.0,88137.0,0.0003642]
[1766154679830,0.49246,88154.0,88138.0,0.00576]
[1766154679831,0.02260828,88147.0,88138.0,0.00576]
[1766154680091,0.01134429,88150.0,88138.0,0.00576]
[1766154680205,0.49246,88154.0,88138.0,0.00576]
[1766154680206,0.01900874,88149.0,88138.0,0.00576]
[1766154680423,0.00576,88157.0,88138.0,0.00576]
[1766154680424,0.49246,88168.0,88139.0,0.01622827]
[1766154680624,0.0025,88166.0,88150.0,0.01134429]
[1766154680844,0.00576,88167.0,88150.0,0.01710429]
[1766154681044,0.00576,88167.0,88153.0,0.05671922]
[1766154681298,0.39727637,88174.0,88153.0,0.05671922]
[1766154681299,0.01,88176.0,88165.0,0.01134236]
[1766154681529,0.01,88176.0,88161.0,0.01710288]
[1766154681530,0.02836828,88176.0,88161.0,0.01710288]
[1766154681725,0.0025,88175.0,88166.0,0.01134224]
[1766154682033,0.49246,88181.0,88161.0,0.00576]
[1766154682034,0.49246,88181.0,88171.0,0.01134159]
[1766154682155,0.39734915,88190.0,88171.0,0.02268319]
[1766154682156,0.00576,88184.0,88171.0,0.02268319]
[1766154682351,0.00576,88184.0,88163.0,0.22685049]
[1766154682352,0.00010913,88184.0,88170.0,0.0025]
[1766154682551,0.03394833,88183.0,88170.0,0.007161]
[1766154682760,0.03394833,88183.0,88156.0,0.22686887]
[1766154682761,0.01134082,88177.0,88153.0,0.34869]
[1766154682979,0.01134082,88177.0,88154.0,0.0512]
[1766154682980,0.49246,88175.0,88154.0,0.0512]
[1766154683323,0.02510828,88174.0,88161.0,0.01134288]
[1766154683546,0.02510828,88174.0,88162.0,0.00576]
[1766154683841,0.02510828,88174.0,88161.0,0.00576]
[1766154684066,0.02510828,88174.0,88151.0,0.02293]
[1766154684067,0.01134275,88162.0,88143.0,0.0113452]
[1766154684202,0.01134275,88162.0,88142.0,0.01134532]
[1766154684203,0.06805839,88160.0,88142.0,0.02269065]
[1766154684406,0.06805839,88160.0,88137.0,0.01134597]
[1766154684407,0.02260828,88159.0,88150.0,0.01134429]
[1766154684706,0.02510828,88164.0,88152.0,0.01134404]
[1766154684931,0.02510828,88164.0,88147.0,0.01134468]
[1766154685131,0.02510828,88164.0,88143.0,0.0113452]
[1766154685132,0.49246,88162.0,88145.0,0.0025]
[1766154685461,0.02260828,88161.0,88146.0,0.00576]
[1766154685607,0.02260828,88161.0,88152.0,0.01134404]
[1766154685810,0.02260828,88161.0,88149.0,0.06806623]
[1766154686061,0.02260828,88163.0,88147.0,0.01134468]
[1766154686197,0.02260828,88163.0,88146.0,0.35445]
[1766154686198,0.83303,88162.0,88146.0,0.00576]
[1766154686398,0.02038049,88161.0,88146.0,0.00576]
[1766154686606,0.02038049,88161.0,88151.0,0.01134417]
[1766154686805,0.02038049,88161.0,88149.0,0.01134442]
[1766154687103,0.02038049,88161.0,88148.0,0.05672271]
[1766154687104,0.49246,88173.0,88161.0,0.001099]
[1766154687372,0.49246,88173.0,88155.0,0.01710365]
[1766154687373,0.02336828,88172.0,88155.0,0.01710365]
[1766154687655,0.02336828,88172.0,88146.0,0.34869]
[1766154687656,0.49246,88157.0,88147.0,0.0025]
[1766154687835,0.49246,88157.0,88136.0,0.04544]
[1766154687836,0.49246,88155.0,88137.0,0.00876074]
[1766154688037,0.01760828,88154.0,88142.0,0.00576]
[1766154688240,0.01760828,88154.0,88138.0,0.01134584]
[1766154688241,0.01760828,88154.0,88131.0,0.05673369]
[1766154688242,0.50380417,88151.0,88131.0,0.05673369]
[1766154688442,0.01760828,88150.0,88135.0,0.0025]
[1766154688649,0.01760828,88150.0,88138.0,0.0025]
[1766154688842,0.01760828,88150.0,88138.0,0.0003642]
[1766154690219,0.01650928,88150.0,88138.0,0.0003642]
[1766154690734,0.49246,88163.0,88138.0,0.0003642]
[1766154690735,0.05544,88174.0,88146.0,0.34869]
[1766154690937,0.05544,88174.0,88148.0,0.01134455]
[1766154690938,0.05671056,88167.0,88148.0,0.01134455]
[1766154691144,0.01134249,88164.0,88147.0,0.00576]
[1766154691363,0.00756601,88163.0,88147.0,0.00576]
[1766154691564,0.00756601,88162.0,88148.0,0.01134455]
[1766154691800,0.01134236,88165.0,88147.0,0.00576]
[1766154692081,0.226828,88173.0,88147.0,0.00576]
[1766154692082,0.01908623,88164.0,88153.0,0.01134391]
[1766154692362,0.48993695,88175.0,88157.0,0.01134339]
[1766154692589,0.23814419,88182.0,88154.0,0.00576]
[1766154692590,0.00576,88177.0,88166.0,0.01134224]
[1766154692855,0.00576,88177.0,88170.0,0.01134172]
[1766154693054,0.06803474,88191.0,88166.0,0.01134224]
[1766154693055,0.00576,88191.0,88171.0,0.01428805]
[1766154693260,0.02495253,88187.0,88167.0,0.01134211]
[1766154693475,0.01400928,88186.0,88180.0,0.01134044]
[1766154693695,0.01400928,88186.0,88167.0,0.34869]
[1766154693696,0.0025,88186.0,88178.0,0.01134069]
[1766154693926,0.00024705,88192.0,88185.0,0.01133979]
[1766154694131,0.00024705,88192.0,88183.0,0.01134005]
[1766154694132,0.00024705,88192.0,88183.0,0.00576]
[1766154694773,0.00024705,88192.0,88186.0,0.01133966]
[1766154694993,0.04424705,88195.0,88187.0,0.01597384]
[1766154695220,0.00414705,88195.0,88187.0,0.01598519]
[1766154695412,0.00414705,88195.0,88183.0,0.23256041]
[1766154695413,0.04930705,88201.0,88192.0,0.01133889]
[1766154695618,0.04930705,88201.0,88193.0,0.02732296]
[1766154695848,0.04930705,88201.0,88197.0,0.01133825]
[1766154696058,0.05,88207.0,88190.0,0.00576]
[1766154696059,0.05,88207.0,88198.0,0.01133812]
[1766154696229,0.045,88207.0,88192.0,0.02267779]
[1766154696634,0.045,88207.0,88191.0,0.0025]
[1766154696896,0.00650928,88206.0,88191.0,0.01383902]
[1766154697307,0.00650928,88206.0,88191.0,0.0025]
[1766154697491,0.045,88207.0,88202.0,0.05668749]
[1766154697694,1e-06,88211.0,88198.0,0.00576]
[1766154698112,1e-06,88211.0,88198.0,0.01709812]
[1766154698417,0.00633658,88210.0,88198.0,0.00576]
[1766154698652,0.00633658,88210.0,88191.0,0.01383902]
[1766154698653,0.01133671,88209.0,88191.0,0.0025]
[1766154698849,0.01133671,88209.0,88185.0,0.01133979]
[1766154698850,0.00010909,88210.0,88190.0,0.0025]
[1766154699031,0.00010909,88210.0,88198.0,0.01133812]
[1766154699229,0.00010909,88210.0,88194.0,0.01133863]
[1766154699409,0.00010909,88210.0,88200.0,0.06802683]
[1766154699655,0.00010909,88210.0,88200.0,0.02267573]
[1766154699774,0.01144567,88210.0,88197.0,0.0025]
[1766154699974,0.01784599,88209.0,88197.0,0.0025]
[1766154700177,0.01144567,88210.0,88187.0,0.01133953]
[1766154700178,0.01133709,88206.0,88187.0,0.01133953]
[1766154700404,0.05668531,88207.0,88188.0,0.0025]
[1766154700405,0.013613,88202.0,88188.0,0.0025]
[1766154700614,0.013613,88202.0,88140.0,1.3345473]
[1766154700615,0.34732,88195.0,88172.0,0.0454]
[1766154700945,0.34732,88195.0,88159.0,0.2542]
[1766154700946,0.34732,88195.0,88165.0,0.01134236]
[1766154700947,0.47651,88177.0,88165.0,0.01134236]
[1766154701243,0.00650928,88176.0,88160.0,0.00576]
[1766154701487,0.013613,88170.0,88160.0,0.00576]
[1766154701708,0.00650928,88169.0,88160.0,0.00576]
[1766154701922,0.00316,88178.0,88169.0,0.001099]
[1766154702140,0.00726928,88187.0,88172.0,0.01134146]
[1766154702343,0.00576,88193.0,88174.0,0.0025]
[1766154702554,0.00576,88193.0,88176.0,0.0025]
[1766154702768,0.01133979,88185.0,88176.0,0.0226819]
[1766154702945,0.5120392,88184.0,88169.0,0.00010913]
[1766154703162,0.01134056,88179.0,88169.0,0.00010913]
[1766154703334,0.01134082,88177.0,88169.0,0.00010913]
[1766154703541,0.01134056,88179.0,88169.0,0.00010913]
[1766154703542,0.01134069,88178.0,88169.0,0.00010913]
[1766154703737,0.01134146,88172.0,88169.0,0.00010913]
[1766154703942,0.03553087,88171.0,88152.0,0.0454]
[1766154704121,0.02418928,88171.0,88162.0,0.01134275]
[1766154704324,0.02418928,88171.0,88156.0,0.00576]
[1766154704325,0.00576,88175.0,88156.0,0.28837705]
[1766154704326,3.055e-05,88170.0,88156.0,0.28837705]
[1766154704523,0.34732,88183.0,88170.0,0.01134172]
[1766154704524,0.35308,88183.0,88170.0,0.01134172]
[1766154704713,0.00576,88183.0,88174.0,0.01134121]
[1766154704923,0.47651,88201.0,88188.0,0.05669658]
[1766154705120,0.47651,88201.0,88182.0,0.01134018]
[1766154705121,0.01386033,88200.0,88182.0,0.00576]
[1766154705457,0.01133838,88196.0,88182.0,0.00576]
[1766154705668,0.02018099,88199.0,88182.0,0.00576]
[1766154705669,0.01923298,88195.0,88182.0,0.00576]
[1766154705868,0.03156462,88194.0,88182.0,0.00576]
[1766154706031,0.02033506,88194.0,88182.0,0.00576]
[1766154706436,0.00010907,88194.0,88182.0,0.00576]
[1766154706640,0.0114477,88194.0,88182.0,0.00576]
[1766154706862,0.00010907,88194.0,88182.0,0.00576]
[1766154707410,0.00099999,88240.0,88182.0,0.00576]
[1766154707411,0.00412403,88201.0,88186.0,0.06803762]
[1766154707623,0.00412403,88201.0,88189.0,0.01133928]
[1766154707795,0.00412403,88201.0,88193.0,0.01133876]
[1766154707958,0.00412403,88201.0,88193.0,0.06803231]
[1766154708163,0.00412403,88201.0,88191.0,0.01133902]
[1766154708364,0.47651,88210.0,88198.0,0.05669036]
[1766154708592,0.47651,88210.0,88194.0,0.01133863]
[1766154708593,0.47651,88210.0,88194.0,0.05669275]
[1766154708790,0.47651,88210.0,88193.0,0.01133876]
[1766154708791,0.00576,88211.0,88196.0,0.01133838]
[1766154708968,0.00576,88211.0,88200.0,0.01133786]
[1766154709172,0.00576,88211.0,88196.0,0.01709838]
[1766154709393,0.0025,88210.0,88197.0,0.0226765]
[1766154709596,0.05707999,88215.0,88197.0,0.0226765]
[1766154709597,0.0004,88215.0,88200.0,0.0025]
[1766154709758,0.34732,88225.0,88204.0,0.0025]
[1766154709759,0.01133516,88221.0,88204.0,0.0025]
[1766154709958,0.02408238,88224.0,88205.0,0.00576]
[1766154709959,0.01832238,88220.0,88205.0,0.00576]
[1766154710342,0.11340205,88233.0,88205.0,0.00576]
[1766154710343,0.00536,88231.0,88217.0,0.01133568]
[1766154710481,0.005953,88229.0,88220.0,0.01133529]
[1766154710683,0.005953,88229.0,88213.0,0.00576]
[1766154710684,0.0025,88230.0,88219.0,0.01133542]
[1766154710883,0.01868238,88231.0,88224.0,0.01133478]
[1766154710884,0.00076,88231.0,88224.0,0.01133478]
[1766154711094,0.34238,88236.0,88213.0,0.02843239]
[1766154711095,0.34238,88236.0,88216.0,0.22671417]
[1766154711299,0.0117317,88248.0,88230.0,0.01133401]
[1766154711300,0.00580008,88246.0,88230.0,0.01133401]
[1766154711498,0.03530911,88237.0,88231.0,0.02266776]
[1766154711743,0.03530911,88237.0,88228.0,0.00576]
[1766154712013,0.03030911,88237.0,88228.0,0.00576]
[1766154712320,0.03030911,88237.0,88228.0,0.004661]
[1766154712321,0.013613,88236.0,88228.0,0.004661]
[1766154712854,0.01530911,88237.0,88228.0,0.004661]
[1766154713253,0.01530911,88237.0,88223.0,0.02316101]
[1766154713254,0.01133362,88233.0,88223.0,0.02316101]
[1766154713452,0.01133362,88233.0,88208.0,0.01133684]
[1766154713453,0.013613,88226.0,88215.0,0.02267188]
[1766154713599,0.48784388,88231.0,88217.0,0.00576]
[1766154713600,0.00868238,88230.0,88217.0,0.00576]
[1766154713993,0.012126,88227.0,88217.0,0.00576]
[1766154714207,0.05033895,88225.0,88217.0,0.00576]
[1766154714403,0.05033895,88225.0,88195.0,0.22676821]
[1766154714404,0.008613,88226.0,88204.0,0.05668675]
[1766154714405,0.81886465,88221.0,88204.0,0.05668675]
[1766154714631,0.00868238,88220.0,88205.0,0.00576]
[1766154714788,0.48503968,88220.0,88206.0,0.0025]
[1766154714989,0.47651,88220.0,88205.0,0.01709722]
[1766154715272,0.47651,88220.0,88206.0,0.0025]
[1766154715407,0.47651,88220.0,88205.0,0.00576]
[1766154715408,0.01133581,88216.0,88205.0,0.00576]
[1766154715825,0.47303968,88220.0,88205.0,0.00576]
[1766154716055,0.48437497,88220.0,88205.0,0.00576]
[1766154716211,0.01133529,88220.0,88205.0,0.00576]
[1766154716415,0.34732,88222.0,88206.0,0.01133709]
[1766154716737,0.01133568,88217.0,88206.0,0.00572]
[1766154717143,0.40399523,88222.0,88217.0,0.001099]
[1766154717332,0.02494778,88224.0,88200.0,0.0025]
[1766154717333,0.35865594,88215.0,88200.0,0.0025]
[1766154717536,0.35865594,88215.0,88178.0,0.02268139]
[1766154717537,0.34732,88208.0,88178.0,0.02268139]